bitfinex-derivatives/quotes_SOLF0:USTF0_20250206
["timestamp","ask_amount","ask_price","bid_price","bid_amount"]
[1738861946884,0.03440299,190.26,190.22,0.03644685]
[1738861947282,11.93129258,190.3,190.19,11.93129258]
[1738861947581,0.03651776,190.26,190.22,0.03875153]
[1738861947782,0.03651776,190.26,190.25,5.2549]
[1738861947989,0.03651776,190.26,190.22,0.03875153]
[1738861948386,0.03651776,190.26,190.25,5.2549]
[1738861950086,0.03651776,190.26,190.23,5.2553]
[1738861950284,0.03651776,190.26,190.22,0.03875153]
[1738861950689,0.03651776,190.26,190.22,5.29415153]
[1738861951187,11.93129258,190.24,190.22,0.03875153]
[1738861951387,3.2848,190.23,190.22,0.03875153]
[1738861953788,3.2848,190.23,190.07,7.24069429]
[1738861953989,19.1039172,190.21,190.07,7.24069429]
[1738861954384,5.2565,190.19,190.07,7.24069429]
[1738861954887,5.2565,190.19,190.1,5.2589]
[1738861955088,0.03911508,190.15,190.11,0.03642043]
[1738861956191,0.03911508,190.15,190.14,5.2579]
[1738861956889,0.03911508,190.15,190.12,5.2584]
[1738861957091,0.03911508,190.15,190.11,0.03642043]
[1738861958493,0.03911508,190.15,190.13,5.258]
[1738861959190,0.03911508,190.15,190.14,5.2579]
[1738861962792,1.508e-05,190.15,190.14,5.2579]
[1738861963689,1.508e-05,190.15,190.13,5.2581]
[1738861963892,1.508e-05,190.15,190.11,0.03642043]
[1738861964288,1.508e-05,190.15,190.14,5.2579]
[1738861968398,1.508e-05,190.15,190.11,0.03642043]
[1738861968989,1.508e-05,190.15,190.14,5.2579]
[1738861975201,1.508e-05,190.15,190.11,0.03642043]
[1738861975202,3.2848,190.23,190.22,5.2557]
[1738861976198,3.2848,190.23,190.21,5.2559]
[1738861976396,3.2848,190.23,190.21,0.03966642]
[1738861976702,0.0001,190.23,190.21,0.03966642]
[1738861976903,4.646e-05,190.24,190.23,5.2554]
[1738861977406,4.646e-05,190.24,190.21,0.03966642]
[1738861977902,5.25524646,190.24,190.21,5.29566642]
[1738861978299,4.646e-05,190.24,190.21,5.29566642]
[1738861979201,4.646e-05,190.24,190.22,5.2556]
[1738861979402,4.646e-05,190.24,190.21,0.03966642]
[1738861980203,4.646e-05,190.24,190.22,5.2555]
[1738861980604,4.646e-05,190.24,190.21,0.03966642]
[1738861980905,4.646e-05,190.24,190.23,5.2554]
[1738861982503,4.646e-05,190.24,190.21,0.03966642]
[1738861983101,4.646e-05,190.24,190.23,5.2554]
[1738861987405,11.93267997,190.38,190.26,11.93267997]
[1738861987604,5.2521,190.36,190.26,11.93267997]
[1738861988105,5.2521,190.35,190.31,5.2532]
[1738861988506,0.03924917,190.35,190.31,0.0352951]
[1738861989813,11.97192914,190.35,190.31,0.0352951]
[1738861990112,5.2528,190.33,190.31,0.0352951]
[1738861990517,11.97192914,190.35,190.31,0.0352951]
[1738861990718,0.03924917,190.35,190.31,0.0352951]
[1738861991411,5.2527,190.33,190.31,0.0352951]
[1738861993512,5.2524,190.34,190.31,0.0352951]
[1738861994715,5.2524,190.34,190.31,5.2884951]
[1738861995717,0.03924917,190.35,190.31,0.0352951]
[1738861995911,5.2529,190.32,190.31,0.0352951]
[1738861996513,11.93267997,190.33,190.31,0.0352951]
[1738861996716,0.03924917,190.35,190.31,0.0352951]
[1738861996920,11.97192914,190.35,190.31,0.0352951]
[1738861997122,17.18557997,190.32,190.31,0.0352951]
[1738861997421,5.2529,190.32,190.31,0.0352951]
[1738861999621,5.2528,190.33,190.31,0.0352951]
[1738862000827,0.03924917,190.35,190.31,0.0352951]
[1738862001919,17.18557997,190.32,190.31,0.0352951]
[1738862003824,16.15267997,190.32,190.16,11.93267997]
[1738862004029,11.93267997,190.25,190.14,7.24069429]
[1738862004532,5.2557,190.23,190.14,7.24069429]
[1738862004933,0.03492868,190.2,190.17,0.03713194]
[1738862005532,0.03492868,190.2,190.18,5.2565]
[1738862006232,0.03492868,190.2,190.19,5.2565]
[1738862007434,2.868e-05,190.2,190.19,5.2565]
[1738862009438,2.868e-05,190.2,190.19,17.18917997]
[1738862010134,2.868e-05,190.2,190.19,5.2565]
[1738862013636,2.868e-05,190.2,190.18,3.2329]
[1738862014135,5.25632868,190.2,190.18,3.2329]
[1738862014337,5.25632868,190.2,190.17,0.03713194]
[1738862015636,5.2568,190.18,190.17,0.03713194]
[1738862017734,11.93267997,190.19,190.11,3.1944]
[1738862017936,5.258,190.14,190.11,8.4531]
[1738862019032,5.29503757,190.14,190.11,8.49204437]
[1738862020240,0.03703757,190.14,190.11,8.49204437]
[1738862021239,5.29493757,190.14,190.11,8.49204437]
[1738862024338,5.29493757,190.14,190.11,5.29764437]
[1738862024738,0.03703757,190.14,190.11,0.03894437]
[1738862025138,11.93267997,190.13,190.11,0.03894437]
[1738862025338,5.2585,190.12,190.11,0.03894437]
[1738862026235,5.2598,190.08,190.06,3.2277]
[1738862026436,11.93267997,190.1,190.06,3.2277]
[1738862027339,11.96941426,190.1,190.06,3.26756033]
[1738862027836,5.2597,190.08,190.06,3.26756033]
[1738862028544,0.03673429,190.1,190.08,5.2596]
[1738862029943,0.03673429,190.1,190.07,5.2598]
[1738862030242,5.29593429,190.1,190.06,3.26756033]
[1738862030541,0.03673429,190.1,190.06,8.52766033]
[1738862030741,0.03673429,190.1,190.06,3.26756033]
[1738862031741,0.03673429,190.1,190.09,5.2593]
[1738862032744,3.429e-05,190.1,190.09,5.2593]
[1738862033244,3.305,190.19,190.17,5.2569]
[1738862033446,3.305,190.19,190.11,11.93267997]
[1738862033836,3.305,190.19,190.16,5.2571]
[1738862034044,3.305,190.19,190.11,11.93267997]
[1738862034642,0.0366488,190.17,190.13,0.03939013]
[1738862034840,0.0366488,190.17,190.14,11.93267997]
[1738862035236,4.88e-05,190.17,190.16,5.2574]
[1738862035438,4.88e-05,190.19,190.14,11.93267997]
[1738862035636,4.88e-05,190.19,190.18,11.93267997]
[1738862036547,4.88e-05,190.19,190.18,17.18947997]
[1738862039046,4.88e-05,190.19,190.18,5.2568]
[1738862040547,8.479e-05,190.2,190.18,11.93267997]
[1738862040747,8.479e-05,190.2,190.19,5.2565]
[1738862041049,8.479e-05,190.2,190.15,11.93267997]
[1738862041242,8.479e-05,190.2,190.16,5.2572]
[1738862041545,8.479e-05,190.2,190.15,11.93267997]
[1738862041740,8.479e-05,190.2,190.16,5.29422289]
[1738862042046,8.479e-05,190.2,190.16,0.03702289]
[1738862043842,8.479e-05,190.2,190.17,5.2569]
[1738862045343,8.479e-05,190.2,190.18,5.2568]
[1738862045546,8.479e-05,190.2,190.16,0.03702289]
[1738862046344,5.25638479,190.2,190.16,0.03702289]
[1738862046549,8.479e-05,190.2,190.16,0.03702289]
[1738862046744,11.93267997,190.19,190.16,0.03702289]
[1738862048749,5.2571,190.17,190.16,0.03702289]
[1738862049156,11.93267997,190.19,190.06,3.2277]
[1738862049451,5.2581,190.14,190.09,5.2592]
[1738862049645,11.93267997,190.15,190.06,3.2277]
[1738862049848,11.93267997,190.15,190.07,5.2598]
[1738862050051,11.93267997,190.15,190.06,3.2277]
[1738862050555,0.03855479,190.12,190.09,0.03416554]
[1738862050746,5.2589,190.11,190.09,0.03416554]
[1738862050950,0.03855479,190.12,190.09,0.03416554]
[1738862051358,0.03855479,190.12,190.1,5.2588]
[1738862053657,0.03855479,190.12,190.09,0.03416554]
[1738862053857,5.2588,190.11,190.09,0.03416554]
[1738862054258,0.03855479,190.12,190.09,0.03416554]
[1738862054861,0.03855479,190.12,190.09,5.29346554]
[1738862055157,0.03855479,190.12,190.09,0.03416554]
[1738862056563,0.03855479,190.12,190.1,5.2588]
[1738862056763,0.03855479,190.12,190.09,0.03416554]
[1738862057263,0.03855479,190.12,190.09,5.29336554]
[1738862057465,0.03855479,190.12,190.09,0.03416554]
[1738862058064,11.97123476,190.12,190.09,0.03416554]
[1738862058664,0.03855479,190.12,190.09,0.03416554]
[1738862059068,5.2589,190.11,190.09,0.03416554]
[1738862059261,11.97123476,190.12,190.09,0.03416554]
[1738862061571,5.259,190.1,190.09,0.03416554]
[1738862063070,5.29725479,190.12,190.09,0.03416554]
[1738862063272,11.97123476,190.12,190.09,0.03416554]
[1738862063472,5.259,190.1,190.09,0.03416554]
[1738862065977,5.2588,190.11,190.09,0.03416554]
[1738862066877,0.03855479,190.12,190.09,0.03416554]
[1738862068483,0.03855479,190.12,190.11,5.2587]
[1738862071381,11.93267997,190.21,190.09,11.96684551]
[1738862071581,11.93267997,190.24,190.12,11.93267997]
[1738862071879,5.2552,190.24,190.2,5.2562]
[1738862072184,16.15267997,190.27,190.15,11.93267997]
[1738862072385,11.93267997,190.27,190.15,11.93267997]
[1738862072678,0.03778195,190.23,190.21,5.2557]
[1738862074478,0.03778195,190.23,190.22,5.2557]
[1738862074786,11.93267997,190.3,190.2,1.6793]
[1738862074996,5.2534,190.31,190.21,13.46217997]
[1738862075287,11.93267997,190.36,190.24,11.93267997]
[1738862075482,5.2527,190.33,190.24,11.93267997]
[1738862075883,0.03441602,190.3,190.27,0.04038461]
[1738862076684,0.03441602,190.3,190.28,5.254]
[1738862077185,0.03441602,190.3,190.27,0.04038461]
[1738862077388,0.03441602,190.3,190.29,5.2538]
[1738862078089,11.93267997,190.36,190.31,5.253]
[1738862078388,17.18457997,190.36,190.31,5.253]
[1738862078588,17.18457997,190.36,190.25,1.5502]
[1738862079089,5.2521,190.35,190.25,1.5502]
[1738862079387,0.03626565,190.32,190.3,5.2533]
[1738862079584,0.03626565,190.32,190.29,0.03566221]
[1738862081192,0.03626565,190.32,190.3,5.2535]
[1738862081689,0.03626565,190.32,190.29,0.03566221]
[1738862081984,0.03626565,190.32,190.31,5.2532]
[1738862082582,11.93267997,190.39,190.32,5.2529]
[1738862082779,5.2519,190.36,190.32,5.2529]
[1738862083083,11.93267997,190.39,190.32,5.2529]
[1738862083785,0.03431788,190.37,190.34,0.03715385]
[1738862084992,5.2521,190.35,190.34,0.03715385]
[1738862086394,0.03431788,190.37,190.34,0.03715385]
[1738862086790,11.93267997,190.45,190.34,1.58345385]
[1738862086990,11.93267997,190.45,190.34,3.11075385]
[1738862087186,5.2504,190.42,190.38,5.2511]
[1738862087588,11.93267997,190.45,190.34,3.0736]
[1738862087990,0.03898896,190.41,190.38,0.03925865]
[1738862088490,0.03898896,190.41,190.39,5.2508]
[1738862091398,0.03898896,190.41,190.38,0.03925865]
[1738862091599,5.28948896,190.41,190.38,0.03925865]
[1738862091997,5.251,190.39,190.38,0.03925865]
[1738862092694,17.18367997,190.39,190.38,0.03925865]
[1738862095399,5.2524,190.34,190.28,1.5391]
[1738862095800,5.253,190.32,190.28,6.7929]
[1738862096400,5.28705757,190.32,190.28,6.82799296]
[1738862096901,5.2532,190.31,190.28,6.82799296]
[1738862097105,5.2532,190.31,190.28,1.57419296]
[1738862097501,5.28705757,190.32,190.28,1.57419296]
[1738862097800,0.03405757,190.32,190.28,1.57419296]
[1738862098902,0.03405757,190.32,190.3,5.2533]
[1738862099407,0.03405757,190.32,190.31,5.2532]
[1738862100706,11.93267997,190.42,190.37,5.2514]
[1738862100900,17.70507997,190.45,190.3,11.93267997]
[1738862101105,5.25,190.43,190.33,11.93267997]
[1738862101306,13.50507997,190.45,190.37,5.2514]
[1738862101506,13.50507997,190.45,190.33,11.93267997]
[1738862101710,11.93267997,190.42,190.3,11.93267997]
[1738862101911,11.93267997,190.42,190.28,1.5391]
[1738862101912,11.93267997,190.39,190.37,0.03919319]
[1738862102207,5.2508,190.4,190.3,11.93267997]
[1738862102402,5.2872331,190.4,190.36,0.03808387]
[1738862102803,5.2513,190.38,190.36,0.03808387]
[1738862103200,0.0364331,190.4,190.36,0.03808387]
[1738862103601,11.93267997,190.39,190.36,0.03808387]
[1738862104309,5.2516,190.37,190.36,0.03808387]
[1738862104908,11.93267997,190.39,190.26,1.6624]
[1738862105110,5.2526,190.34,190.26,1.6624]
[1738862105309,5.2526,190.34,190.3,5.2533]
[1738862105512,5.2532,190.32,190.26,1.6624]
[1738862105902,11.93267997,190.35,190.28,5.2538]
[1738862106106,0.0393786,190.31,190.28,5.2538]
[1738862106404,0.0393786,190.31,190.27,0.03563719]
[1738862107009,0.0393786,190.31,190.27,5.28973719]
[1738862107202,0.0393786,190.31,190.27,0.03563719]
[1738862107808,19.1321011,190.31,190.27,0.03563719]
[1738862108314,19.0927225,190.28,190.27,0.03563719]
[1738862108615,5.2549,190.25,190.19,1.5399]
[1738862108913,5.2549,190.25,190.2,5.256]
[1738862109413,5.2549,190.25,190.19,1.5399]
[1738862109815,0.03829307,190.24,190.2,0.03477201]
[1738862110814,9.307e-05,190.24,190.2,0.03477201]
[1738862111611,9.307e-05,190.24,190.23,5.2554]
[1738862113817,19.0927225,190.4,190.21,19.0927225]
[1738862114012,4.2,190.38,190.2,0.03477201]
[1738862114310,19.0927225,190.37,190.21,19.0927225]
[1738862114806,5.2512,190.39,190.24,19.0927225]
[1738862115008,5.2512,190.39,190.35,5.2521]
[1738862115212,19.0927225,190.4,190.27,0.03686314]
[1738862115511,0.03676994,190.33,190.32,0.0365809]
[1738862115711,5.2516,190.37,190.33,5.2525]
[1738862116311,0.03597115,190.38,190.32,0.0365809]
[1738862117311,0.03597115,190.38,190.36,5.2516]
[1738862117711,0.03597115,190.38,190.32,0.0365809]
[1738862118316,0.03597115,190.38,190.35,5.2519]
[1738862118617,0.03597115,190.38,190.32,0.0365809]
[1738862119214,0.03597115,190.38,190.36,5.2517]
[1738862120618,0.03597115,190.38,190.37,5.2516]
[1738862122323,4.2,190.48,190.42,5.2501]
[1738862122516,5.249,190.47,190.34,1.6805]
[1738862122913,19.0927225,190.52,190.36,19.0927225]
[1738862123117,44.74398548,190.53,190.39,19.0927225]
[1738862123321,33.0344858,190.53,190.39,19.0927225]
[1738862123523,33.0344858,190.53,190.46,5.2488]
[1738862123524,0.03322054,190.48,190.46,5.2488]
[1738862123721,0.03322054,190.48,190.44,0.03366037]
[1738862123911,0.03322054,190.48,190.47,5.2488]
[1738862124424,2.054e-05,190.48,190.47,5.2488]
[1738862129126,5.245,190.61,190.47,19.0927225]
[1738862129329,19.0927225,190.64,190.58,5.2457]
[1738862129524,19.0927225,190.67,190.53,19.0927225]
[1738862129734,5.2436,190.66,190.53,19.0927225]
[1738862130227,5.2436,190.66,190.54,1.6477]
[1738862130428,1.6275,190.68,190.58,0.03528454]
[1738862130830,0.03834052,190.62,190.59,5.2454]
[1738862131127,0.03834052,190.62,190.58,0.03528454]
[1738862131521,0.03834052,190.62,190.59,5.2454]
[1738862131730,0.03834052,190.62,190.58,0.03528454]
[1738862132831,0.03834052,190.62,190.6,5.2452]
[1738862133129,0.03834052,190.62,190.58,0.03528454]
[1738862133531,19.0927225,190.73,190.66,5.2433]
[1738862133733,5.2422,190.71,190.59,19.0927225]
[1738862134132,5.2422,190.71,190.66,5.2433]
[1738862134334,5.242,190.72,190.59,19.0927225]
[1738862134630,19.0927225,190.73,190.64,0.03478213]
[1738862134833,5.2439,190.65,190.64,0.03478213]
[1738862135234,19.0927225,190.67,190.55,1.6543]
[1738862135433,19.0927225,190.64,190.55,1.6543]
[1738862135633,19.0927225,190.64,190.57,5.246]
[1738862135830,19.0927225,190.64,190.55,1.6543]
[1738862136034,19.0927225,190.61,190.47,19.0927225]
[1738862136233,19.0927225,190.61,190.5,5.2477]
[1738862136532,19.0927225,190.58,190.57,0.03416301]
[1738862136733,19.0927225,190.58,190.48,1.6148]
[1738862137033,5.2466,190.55,190.48,1.6148]
[1738862137735,19.0927225,190.55,190.39,19.0927225]
[1738862137929,0.03886019,190.53,190.5,0.0369101]
[1738862138132,19.0927225,190.52,190.5,0.0369101]
[1738862138331,19.0927225,190.52,190.4,1.6595]
[1738862138535,0.04013577,190.53,190.5,0.0396784]
[1738862138837,4.2,190.55,190.41,1.5362]
[1738862139135,19.0927225,190.52,190.5,0.03908268]
[1738862139332,5.2485,190.48,190.43,5.2499]
[1738862139533,19.0927225,190.52,190.49,0.03957128]
[1738862139934,5.2484,190.49,190.43,5.2499]
[1738862140129,19.12937673,190.52,190.41,1.5362]
[1738862140335,1.6625,190.56,190.44,0.03324648]
[1738862140635,0.03664982,190.48,190.47,5.2488]
[1738862140837,5.8625,190.56,190.4,1.5683]
[1738862141131,0.03656419,190.49,190.48,0.03375239]
[1738862141529,5.8625,190.56,190.48,0.03375239]
[1738862141837,0.0379882,190.5,190.48,0.03375239]
[1738862142130,5.8625,190.56,190.48,0.03375239]
[1738862142432,0.03607528,190.51,190.48,0.03375239]
[1738862147940,0.03607528,190.51,190.5,5.248]
[1738862150237,0.03607528,190.51,190.48,0.03375239]
[1738862151841,5.28387528,190.51,190.48,0.03375239]
[1738862152838,0.03607528,190.51,190.48,0.03375239]
[1738862153744,0.03607528,190.51,190.5,5.248]
[1738862154935,0.03607528,190.51,190.49,5.2482]
[1738862155848,5.28397528,190.51,190.48,5.28225239]
[1738862156047,0.03607528,190.51,190.48,0.03375239]
[1738862156544,5.2483,190.49,190.48,0.03375239]
[1738862157942,0.03607528,190.51,190.48,0.03375239]
[1738862158848,5.2482,190.5,190.48,0.03375239]
[1738862159850,5.2483,190.49,190.48,0.03375239]
[1738862160353,5.248,190.5,190.48,0.03375239]
[1738862160547,0.03607528,190.51,190.48,0.03375239]
[1738862161049,5.2483,190.49,190.48,0.03375239]
[1738862161851,5.28387528,190.51,190.48,0.03375239]
[1738862162052,0.03607528,190.51,190.48,0.03375239]
[1738862163457,24.3410225,190.49,190.48,0.03375239]
[1738862163755,19.0927225,190.49,190.4,1.5683]
[1738862164951,0.03507606,190.46,190.43,0.03800373]
[1738862165557,5.2496,190.44,190.43,0.03800373]
[1738862166959,19.12779856,190.46,190.36,1.5658]
[1738862167259,19.0927225,190.43,190.34,1.57]
[1738862167654,5.2514,190.38,190.34,1.57]
[1738862168247,0.03484185,190.38,190.34,1.60496655]
[1738862168449,0.03484185,190.38,190.37,5.2516]
[1738862168648,4.2,190.44,190.34,1.60496655]
[1738862168855,190.3296,190.49,190.43,5.2498]
[1738862169059,190.3296,190.49,190.34,1.57]
[1738862169354,4.2,190.51,190.36,19.0927225]
[1738862169559,19.0927225,190.52,190.37,1.6214]
[1738862169760,0.03971381,190.45,190.42,0.03962387]
[1738862169961,0.03971381,190.45,190.44,5.2496]
[1738862170157,19.0927225,190.52,190.42,0.03962387]
[1738862170357,0.03468812,190.45,190.42,0.03962387]
[1738862170561,5.2484,190.49,190.42,0.03962387]
[1738862170758,19.0927225,190.52,190.42,0.03962387]
[1738862170759,0.03481047,190.45,190.42,0.03962387]
[1738862172063,0.03481047,190.45,190.42,5.28952387]
[1738862172466,0.03481047,190.45,190.44,5.2496]
[1738862174164,1.047e-05,190.45,190.44,5.2496]
[1738862175869,1.6625,190.56,190.42,19.13234637]
[1738862176168,1.6625,190.56,190.42,19.0927225]
[1738862176467,26.30134395,190.58,190.49,5.248]
[1738862176670,19.0927225,190.55,190.39,19.0927225]
[1738862177069,0.03484997,190.49,190.45,0.03899316]
[1738862177469,0.03484997,190.49,190.48,5.2485]
[1738862178574,4.997e-05,190.49,190.48,24.3412225]
[1738862179570,1.546,190.57,190.56,5.2463]
[1738862179770,28.8344858,190.62,190.48,19.0927225]
[1738862180369,86.76285743,190.65,190.48,19.0927225]
[1738862180370,7.46802145,190.65,190.48,19.0927225]
[1738862180571,5.245,190.61,190.57,5.2458]
[1738862180767,0.03625283,190.63,190.48,19.0927225]
[1738862180971,7.20862145,190.65,190.57,0.03732771]
[1738862181273,5.2449,190.62,190.58,5.2457]
[1738862181477,0.03449107,190.63,190.57,0.03732771]
[1738862181775,5.2455,190.59,190.57,0.03732771]
[1738862182375,5.2458,190.58,190.57,0.03732771]
[1738862182968,0.03449107,190.63,190.57,0.03732771]
[1738862185374,19.0927225,190.58,190.42,48.05549968]
[1738862185576,19.0927225,190.55,190.42,28.96277718]
[1738862186080,5.2486,190.48,190.44,5.2496]
[1738862186378,19.0927225,190.52,190.42,28.96277718]
[1738862186576,0.03907525,190.48,190.44,0.03881763]
[1738862187177,0.03907525,190.48,190.45,5.2493]
[1738862187379,0.03907525,190.48,190.44,0.03881763]
[1738862187776,0.03907525,190.48,190.47,5.2488]
[1738862188486,0.03907525,190.48,190.44,0.03881763]
[1738862190983,5.28767525,190.48,190.45,5.2494]
[1738862191377,5.2489,190.47,190.44,0.03881763]
[1738862192878,0.03907525,190.48,190.44,0.03881763]
[1738862192879,5.2494,190.45,190.44,0.03881763]
[1738862193287,19.0927225,190.46,190.39,1.5869]
[1738862193483,5.251,190.4,190.35,5.2519]
[1738862193886,19.0927225,190.46,190.31,3.1978]
[1738862194080,19.0927225,190.46,190.37,5.2513]
[1738862194081,5.2505,190.41,190.37,5.2513]
[1738862194486,5.28797068,190.41,190.37,5.28891243]
[1738862195989,0.03747068,190.41,190.37,5.28891243]
[1738862196386,0.03747068,190.41,190.38,5.2513]
[1738862196696,0.03747068,190.41,190.37,0.03761243]
[1738862197691,5.2513,190.38,190.37,0.03761243]
[1738862198786,5.2529,190.33,190.31,3.1978]
[1738862198984,5.2529,190.33,190.29,5.2537]
[1738862199180,19.0927225,190.36,190.28,1.6806]
[1738862199381,5.2533,190.31,190.27,5.2543]
[1738862199585,19.0927225,190.36,190.24,1.5472]
[1738862199787,19.0927225,190.33,190.23,28.96277718]
[1738862199986,5.2535,190.3,190.28,0.03746267]
[1738862200592,0.03971496,190.32,190.28,0.03746267]
[1738862201289,0.03971496,190.32,190.31,5.2532]
[1738862201483,1.496e-05,190.32,190.31,5.2532]
[1738862206595,1.496e-05,190.32,190.28,0.03746267]
[1738862207087,5.2534,190.31,190.28,0.03746267]
[1738862207492,1.496e-05,190.32,190.28,0.03746267]
[1738862209991,5.2538,190.29,190.28,0.03746267]
[1738862210193,19.0927225,190.31,190.12,19.0927225]
[1738862210503,5.2557,190.22,190.18,5.2567]
[1738862210794,19.0927225,190.25,190.09,19.0927225]
[1738862210994,5.256,190.22,190.09,19.0927225]
[1738862211197,19.0927225,190.25,190.09,19.0927225]
[1738862211387,0.03874227,190.17,190.14,0.0334175]
[1738862211591,4.18,190.26,190.09,19.0927225]
[1738862211991,7.234e-05,190.17,190.15,19.0927225]
[1738862212496,4.18,190.26,190.15,19.0927225]
[1738862212687,4.18,190.26,190.12,19.0927225]
[1738862212891,9.4349,190.26,190.2,5.256]
[1738862213100,9.4349,190.26,190.12,19.0927225]
[1738862213291,0.03856208,190.21,190.2,5.2563]
[1738862213596,9.4349,190.26,190.2,5.2563]
[1738862213797,0.03388939,190.22,190.2,5.2563]
[1738862215100,0.03388939,190.22,190.21,5.256]
[1738862215997,8.939e-05,190.22,190.21,5.256]
[1738862218499,19.0927225,190.37,190.31,5.253]
[1738862219099,19.0927225,190.37,190.23,19.0927225]
[1738862219301,19.0927225,190.37,190.27,5.2543]
[1738862219900,0.03727611,190.34,190.3,0.03682023]
[1738862220903,5.2534,190.31,190.3,0.03682023]
[1738862221103,24.3461225,190.31,190.3,0.03682023]
[1738862221803,38.185445,190.31,190.13,3.3178]
[1738862221997,19.0927225,190.25,190.09,19.0927225]
[1738862222499,5.2568,190.19,190.14,5.2579]
[1738862222702,19.0927225,190.19,190.08,4.8856]
[1738862222903,5.2574,190.16,190.15,0.03566498]
[1738862223098,0.03944077,190.18,190.15,0.03566498]
[1738862224306,5.2571,190.17,190.15,0.03566498]
[1738862224807,5.2574,190.16,190.15,0.03566498]
[1738862225007,0.03944077,190.18,190.15,0.03566498]
[1738862225402,5.2574,190.16,190.15,0.03566498]
[1738862226306,0.03944077,190.18,190.15,0.03566498]
[1738862227617,5.2574,190.16,190.15,0.03566498]
[1738862228918,24.3501225,190.16,190.15,0.03566498]
[1738862229315,5.2591,190.1,190.01,1.5432]
[1738862229513,19.0927225,190.16,190.01,1.5432]
[1738862229714,5.2579,190.14,190.01,1.5432]
[1738862230421,0.03559351,190.09,190.06,0.03493198]
[1738862231521,0.03559351,190.09,190.08,5.2596]
[1738862232117,0.03559351,190.09,190.06,0.03493198]
[1738862232521,9.351e-05,190.09,190.06,0.03493198]
[1738862232721,9.351e-05,190.09,190.06,19.12765448]
[1738862232923,9.351e-05,190.09,190.08,5.2596]
[1738862234925,9.351e-05,190.09,190.07,5.2598]
[1738862235226,9.351e-05,190.09,190.06,0.03493198]
[1738862236426,9.351e-05,190.09,190.08,5.2596]
[1738862242029,9.351e-05,190.09,190.06,0.03493198]
[1738862242631,5.2599,190.07,190.06,0.03493198]
[1738862243133,5.2596,190.08,190.06,0.03493198]
[1738862243535,9.351e-05,190.09,190.06,0.03493198]
[1738862244329,5.2599,190.07,190.06,0.03493198]
[1738862244635,21.41865336,190.07,190.01,1.5432]
[1738862244832,17.23865336,190.04,190.01,1.5432]
[1738862245135,5.2612,190.02,190.01,1.5432]
[1738862245730,5.2618,190.0,189.94,5.2634]
[1738862246035,0.03597756,190.03,189.88,21.72208289]
[1738862246332,5.29697756,190.03,189.9,17.23865336]
[1738862246527,0.03597756,190.03,189.95,5.2632]
[1738862246928,0.03597756,190.03,189.99,3.28050763]
[1738862247430,5.2618,190.0,189.99,3.28050763]
[1738862247635,17.23865336,190.01,189.88,21.72208289]
[1738862247836,17.23865336,189.98,189.94,5.2634]
[1738862248133,5.262,190.0,189.88,21.72208289]
[1738862248430,17.23865336,190.01,189.96,5.2629]
[1738862248731,17.23865336,190.04,189.97,0.03690096]
[1738862248925,17.23865336,190.01,189.84,17.23865336]
[1738862249125,5.2626,189.97,189.93,5.2636]
[1738862249734,5.3023058,189.97,189.93,5.2636]
[1738862250141,5.3023058,189.97,189.92,5.264]
[1738862250529,5.3023058,189.97,189.91,0.03661378]
[1738862250836,5.2629,189.96,189.92,5.2639]
[1738862251732,0.0397058,189.97,189.91,0.03661378]
[1738862252838,5.2637,189.94,189.91,0.03661378]
[1738862253137,4.2197058,189.97,189.91,0.03661378]
[1738862253441,17.23865336,189.95,189.91,0.03661378]
[1738862253630,4.2197058,189.97,189.76,10.5369]
[1738862253631,17.23865336,189.92,189.76,10.5369]
[1738862253826,17.23865336,189.92,189.75,46.20143054]
[1738862254031,17.23865336,189.85,189.75,28.96277718]
[1738862254235,17.23865336,189.85,189.76,1.6773]
[1738862254432,17.23865336,189.88,189.76,1.6773]
[1738862254833,0.03389014,189.84,189.8,0.03869364]
[1738862255333,0.03389014,189.84,189.83,5.2665]
[1738862256430,9.014e-05,189.84,189.83,5.2665]
[1738862257137,9.014e-05,189.84,189.8,5.30579364]
[1738862257334,9.014e-05,189.84,189.8,0.03869364]
[1738862257635,9.014e-05,189.84,189.8,5.30599364]
[1738862257839,9.014e-05,189.84,189.8,0.03869364]
[1738862258339,9.014e-05,189.84,189.83,5.2665]
[1738862261246,9.014e-05,189.84,189.8,0.03869364]
[1738862261445,9.014e-05,189.84,189.81,5.267]
[1738862262144,9.014e-05,189.84,189.83,5.2665]
[1738862266444,9.014e-05,189.84,189.8,0.03869364]
[1738862266445,9.014e-05,189.84,189.81,5.2668]
[1738862266651,9.014e-05,189.84,189.8,0.03869364]
[1738862266849,5.26639014,189.84,189.8,0.03869364]
[1738862267750,9.014e-05,189.84,189.82,5.2667]
[1738862268752,9.014e-05,189.84,189.8,0.03869364]
[1738862269050,9.014e-05,189.84,189.81,5.267]